bitfinex/quotes_BTCUSD_20250829
["timestamp","ask_amount","ask_price","bid_price","bid_amount"]
[1756455731151,0.00447834,110290.0,110280.0,0.26967694]
[1756455731350,0.00047834,110290.0,110280.0,0.26967694]
[1756455731886,0.00347834,110290.0,110280.0,0.26967694]
[1756455732389,0.00347834,110290.0,110280.0,0.26645694]
[1756455732596,0.00347834,110290.0,110280.0,0.37824513]
[1756455732925,0.00347834,110290.0,110280.0,0.38146513]
[1756455733188,0.00347834,110290.0,110280.0,0.38142513]
[1756455733345,0.00347834,110290.0,110280.0,0.38138513]
[1756455733544,0.00347834,110290.0,110280.0,0.46968145]
[1756455733956,0.00347834,110290.0,110280.0,0.89797777]
[1756455734155,0.00347834,110290.0,110280.0,1.90196754]
[1756455735091,0.00347834,110290.0,110280.0,1.92290636]
[1756455735476,0.00047834,110290.0,110280.0,0.72997777]
[1756455735676,0.00047834,110290.0,110280.0,1.90176754]
[1756455735914,0.00047834,110290.0,110280.0,1.90276754]
[1756455736089,0.00047834,110290.0,110280.0,0.73097777]
[1756455736294,0.00047834,110290.0,110280.0,0.81460145]
[1756455737003,0.00047834,110290.0,110280.0,1.81859122]
[1756455737175,0.00047834,110290.0,110280.0,1.81459122]
[1756455737579,0.00047834,110290.0,110280.0,1.64667122]
[1756455737798,0.00047834,110290.0,110280.0,0.81360145]
[1756455738007,0.00247834,110290.0,110280.0,0.38196513]
[1756455738135,0.00247834,110290.0,110280.0,0.38001513]
[1756455738340,0.00247834,110290.0,110280.0,0.38196513]
[1756455738746,0.00560834,110290.0,110280.0,0.38001513]
[1756455738972,0.00560834,110290.0,110280.0,0.37901513]
[1756455739173,0.00047834,110290.0,110280.0,0.37804513]
[1756455739377,0.00047834,110290.0,110280.0,0.52556126]
[1756455739722,0.00047834,110290.0,110280.0,1.53255103]
[1756455739931,0.00047834,110290.0,110280.0,0.52656126]
[1756455740240,0.00261834,110290.0,110280.0,0.21124513]
[1756455740432,0.00261834,110290.0,110280.0,0.37697513]
[1756455740629,0.01103842,110290.0,110280.0,0.37797513]
[1756455740852,0.01103842,110290.0,110280.0,0.38000513]
[1756455741099,0.00889842,110290.0,110280.0,0.38498513]
[1756455741314,0.00047834,110290.0,110280.0,0.47128145]
[1756455741514,0.00047834,110290.0,110280.0,0.47228145]
[1756455741717,1.19107821,110290.0,110280.0,0.35203654]
[1756455741867,1.19107821,110290.0,110280.0,0.21121513]
[1756455741868,1.19949896,110290.0,110280.0,0.21121513]
[1756455742075,1.19949896,110290.0,110280.0,0.19753859]
[1756455742288,1.01815886,110290.0,110280.0,0.37889513]
[1756455742460,0.01416909,110290.0,110280.0,0.37689513]
[1756455742886,0.00889909,110290.0,110280.0,0.43475194]
[1756455743059,0.00989909,110290.0,110280.0,0.43773194]
[1756455743324,0.00989909,110290.0,110280.0,0.43673194]
[1756455743500,0.01416909,110290.0,110280.0,0.37589513]
[1756455743849,0.01416909,110290.0,110280.0,0.37689513]
[1756455743850,0.01516909,110290.0,110280.0,0.37689513]
[1756455744055,0.19550919,110290.0,110280.0,0.20921513]
[1756455744233,0.01416909,110290.0,110280.0,0.37585513]
[1756455744368,0.01416909,110290.0,110280.0,0.20921513]
[1756455744581,0.19550919,110290.0,110280.0,0.37681513]
[1756455744787,0.01416909,110290.0,110280.0,0.37681513]
[1756455745396,0.0173601,110290.0,110280.0,0.37881513]
[1756455745603,0.01736007,110290.0,110280.0,0.43686394]
[1756455745805,0.00889909,110290.0,110280.0,0.43884394]
[1756455746011,0.00890673,110290.0,110280.0,0.43684394]
[1756455746259,0.00890673,110290.0,110280.0,0.26924394]
[1756455746260,0.00990673,110290.0,110280.0,0.26924394]
[1756455746453,0.00990673,110290.0,110280.0,0.37860513]
[1756455746804,0.01104673,110290.0,110280.0,0.37760513]
[1756455747141,0.01104673,110290.0,110280.0,0.38693479]
[1756455747344,0.01104673,110290.0,110280.0,0.38060513]
[1756455747600,1.0181665,110290.0,110280.0,0.37877513]
[1756455747807,1.1995066,110290.0,110280.0,0.37877513]
[1756455748017,0.01417673,110290.0,110280.0,0.37877513]
[1756455748220,0.01417673,110290.0,110280.0,0.21121513]
[1756455748475,1.1995066,110290.0,110280.0,0.37853513]
[1756455748692,1.21896498,110290.0,110280.0,0.35167654]
[1756455748897,1.28197146,110290.0,110280.0,0.003]
[1756455749097,1.28197146,110290.0,110280.0,0.02985859]
[1756455749277,1.30627687,110290.0,110280.0,0.02985859]
[1756455749483,1.30629374,110290.0,110280.0,0.02985859]
[1756455749665,1.35954105,110290.0,110280.0,0.02985859]
[1756455749853,1.30629374,110290.0,110280.0,0.02985859]
[1756455750362,0.18135654,110280.0,110270.0,0.1676]
[1756455750565,1.21851995,110280.0,110270.0,0.19445859]
[1756455750749,1.21851995,110280.0,110270.0,0.19429859]
[1756455751115,0.03317364,110280.0,110270.0,0.37567158]
[1756455751320,0.21453018,110280.0,110270.0,0.37567158]
[1756455751450,0.21140018,110280.0,110270.0,0.37770158]
[1756455751652,0.21453018,110280.0,110270.0,0.37567158]
[1756455751854,1.21851995,110280.0,110270.0,0.37567158]
[1756455752660,0.21140018,110280.0,110270.0,0.37770158]
[1756455752860,0.02790364,110280.0,110270.0,0.44178998]
[1756455753067,0.02790364,110280.0,110270.0,0.38703081]
[1756455753314,0.23570559,110280.0,110270.0,0.38405585]
[1756455753518,0.05434905,110280.0,110270.0,0.37870158]
[1756455753672,0.05434905,110280.0,110270.0,0.38803641]
[1756455753673,0.05220905,110280.0,110270.0,0.38803641]
[1756455753884,0.05220905,110280.0,110270.0,0.38505641]
[1756455754238,0.05320905,110280.0,110270.0,0.21761641]
[1756455754378,0.05320905,110280.0,110270.0,0.38485641]
[1756455754775,0.05320905,110280.0,110270.0,0.38783641]
[1756455755602,0.05320905,110280.0,110270.0,0.22059641]
[1756455755811,0.05534905,110280.0,110270.0,0.38473641]
[1756455756482,0.05538235,110280.0,110270.0,0.3847451]
[1756455756913,1.24385866,110280.0,110270.0,0.3827151]
[1756455757110,1.24385866,110280.0,110270.0,0.03422211]
[1756455757315,1.27645191,110280.0,110270.0,0.3826751]
[1756455757519,1.27645191,110280.0,110270.0,0.19493859]
[1756455757676,1.33986952,110280.0,110270.0,0.02785859]
[1756455757872,1.53153346,110280.0,110270.0,0.02785859]
[1756455758056,1.87153346,110280.0,110270.0,0.001]
[1756455758251,1.92723653,110280.0,110270.0,0.001]
[1756455758679,0.18138944,110260.0,110250.0,0.19385859]
[1756455758854,1.27564631,110260.0,110250.0,0.37526448]
[1756455759073,1.27564631,110260.0,110250.0,0.02685859]
[1756455759269,1.27564631,110260.0,110250.0,0.18140589]
[1756455759602,1.3000429,110260.0,110250.0,0.18140589]
[1756455759800,1.11880965,110260.0,110250.0,0.18140589]
[1756455759999,1.25129038,110260.0,110250.0,0.18140589]
[1756455760215,1.06990094,110260.0,110250.0,0.18140589]
[1756455760417,1.41512038,110260.0,110250.0,0.18140589]
[1756455760611,0.22974117,110260.0,110250.0,0.20826448]
[1756455760815,0.08607524,110260.0,110250.0,0.21029448]
[1756455761026,1.27359445,110260.0,110250.0,0.21129448]
[1756455761225,1.27358748,110260.0,110250.0,0.21129448]
[1756455761428,1.34095757,110260.0,110250.0,0.001]
[1756455761629,1.31653047,110260.0,110250.0,0.001]
[1756455761863,1.40482679,110260.0,110250.0,0.02785859]
[1756455761995,0.40083702,110260.0,110250.0,0.02785859]
[1756455762204,1.40482679,110260.0,110250.0,0.02785859]
[1756455762811,1.4537355,110260.0,110250.0,0.20926448]
[1756455763250,1.40482679,110260.0,110250.0,0.20926448]
[1756455763516,0.15029006,110260.0,110250.0,0.21129448]
[1756455763724,0.08604993,110260.0,110250.0,0.21427448]
[1756455763939,1.27356914,110260.0,110250.0,0.02988859]
[1756455764192,1.0953097,110260.0,110250.0,0.37594448]
[1756455764395,0.05344412,110260.0,110250.0,0.38095448]
[1756455764756,0.05344412,110260.0,110250.0,0.37797448]
[1756455764957,0.05558412,110260.0,110250.0,0.37797448]
[1756455765167,0.02903536,110260.0,110250.0,0.37797448]
[1756455765787,0.02903536,110260.0,110250.0,0.43719209]
[1756455765992,0.02903536,110260.0,110250.0,0.38095448]
[1756455766552,0.0205568,110260.0,110250.0,0.38095448]
[1756455766786,0.02902481,110260.0,110250.0,0.38095448]
[1756455766991,0.02902481,110260.0,110250.0,0.37797448]
[1756455766992,1.21654402,110260.0,110250.0,0.37797448]
[1756455767252,1.21967402,110260.0,110250.0,0.37594448]
[1756455767419,1.30797034,110260.0,110250.0,0.19425859]
[1756455767617,1.3323791,110260.0,110250.0,0.20926448]
[1756455767795,1.37221043,110260.0,110250.0,0.02785859]
[1756455768004,1.39661919,110260.0,110250.0,0.20926448]
[1756455768637,1.30832287,110260.0,110250.0,0.02785859]
[1756455769215,1.30519287,110260.0,110250.0,0.20926448]
[1756455769418,0.0954049,110260.0,110250.0,0.21138448]
[1756455769727,1.28078411,110260.0,110250.0,0.20926448]
[1756455770352,1.28397411,110260.0,110250.0,0.20926448]
[1756455770704,0.03116481,110260.0,110250.0,0.26740009]
[1756455770908,0.02902481,110260.0,110250.0,0.21138448]
[1756455771148,1.21440402,110260.0,110250.0,0.21138448]
[1756455772090,1.21958402,110260.0,110250.0,0.02785859]
[1756455772416,1.37212043,110260.0,110250.0,0.20926448]
[1756455772844,1.19073099,110260.0,110250.0,0.20926448]
[1756455772965,0.0952549,110260.0,110250.0,0.21138448]
[1756455773180,0.02902481,110260.0,110250.0,0.21445448]
[1756455774157,1.03500458,110260.0,110250.0,0.37738448]
[1756455774501,1.21639402,110260.0,110250.0,0.37738448]
[1756455774704,1.03500458,110260.0,110250.0,0.37738448]
[1756455774935,1.2473717,110260.0,110250.0,0.18240589]
[1756455775245,1.2505617,110260.0,110250.0,0.37522448]
[1756455775455,1.21958402,110260.0,110250.0,0.37522448]
[1756455775670,0.03101481,110260.0,110250.0,0.37522448]
[1756455775886,0.19498481,110260.0,110250.0,0.21445448]
[1756455776235,0.19697481,110260.0,110250.0,0.21138448]
[1756455776439,1.22275313,110260.0,110250.0,0.20926448]
[1756455776561,1.22594313,110260.0,110250.0,0.37510448]
[1756455776967,1.23304346,110260.0,110250.0,0.02785859]
[1756455777170,1.30576237,110260.0,110250.0,0.02785859]
[1756455777610,1.30576237,110260.0,110240.0,0.34730159]
[1756455777611,0.18140589,110250.0,110240.0,0.34730159]
[1756455777807,1.20541619,110250.0,110240.0,0.18142235]
[1756455778830,1.20589424,110250.0,110240.0,0.18342235]
[1756455779233,1.20589424,110250.0,110240.0,0.18442235]
[1756455780216,1.20589424,110250.0,110240.0,0.18342235]
[1756455780615,1.20589718,110250.0,110240.0,0.18342235]
[1756455780817,1.02130129,110250.0,110240.0,0.18554235]
[1756455781022,0.01731152,110250.0,110240.0,0.18554235]
[1756455781425,0.01731152,110250.0,110240.0,0.18861235]
[1756455781426,0.01532152,110250.0,110240.0,0.18861235]
[1756455781626,0.01532152,110250.0,110240.0,0.18661235]
[1756455782559,0.01532152,110250.0,110240.0,0.18761235]
[1756455782764,0.01532152,110250.0,110240.0,0.18861235]
[1756455783010,0.00896241,110250.0,110240.0,1.33549475]
[1756455783217,0.00896241,110250.0,110240.0,0.33150498]
[1756455783624,1.02130846,110250.0,110240.0,0.18554235]
[1756455783827,1.02130846,110250.0,110240.0,0.35198235]
[1756455784351,0.01731869,110250.0,110240.0,0.35198235]
[1756455784509,0.01731869,110250.0,110240.0,0.35098235]
[1756455785021,0.01731869,110250.0,110240.0,0.18454235]
[1756455785232,0.10362501,110250.0,110240.0,0.35110235]
[1756455785428,0.10362501,110250.0,110240.0,0.35317235]
[1756455785429,0.01532869,110250.0,110240.0,0.35317235]
[1756455785991,0.00684433,110250.0,110240.0,0.35317235]
[1756455786216,0.00684702,110250.0,110240.0,0.35317235]
[1756455786620,0.01533898,110250.0,110240.0,0.35317235]
[1756455787170,0.01533898,110250.0,110240.0,0.35417235]
[1756455787700,0.21840779,110250.0,110240.0,0.35110235]
[1756455787903,0.0370019,110250.0,110240.0,0.35110235]
[1756455788312,0.01732898,110250.0,110240.0,0.35110235]
[1756455788511,0.01533898,110250.0,110240.0,0.35417235]
[1756455788819,0.19873487,110250.0,110240.0,0.35090235]
[1756455788967,1.20272464,110250.0,110240.0,0.35090235]
[1756455789168,1.20591464,110250.0,110240.0,0.34782235]
[1756455789368,1.09841325,110250.0,110240.0,0.34782235]
[1756455789570,1.27981914,110250.0,110240.0,0.34782235]
[1756455789853,1.05594173,110250.0,110240.0,0.35301235]
[1756455790042,0.05195196,110250.0,110240.0,0.35301235]
[1756455790265,0.05394196,110250.0,110240.0,0.34994235]
[1756455790633,0.23534785,110250.0,110240.0,0.34994235]
[1756455790840,0.23853785,110250.0,110240.0,0.34782235]
[1756455791145,0.32683417,110250.0,110240.0,0.34782235]
[1756455791499,1.33082394,110250.0,110240.0,0.34782235]
[1756455792173,0.05394196,110250.0,110240.0,0.18354235]
[1756455792378,0.05394196,110250.0,110240.0,0.34994235]
[1756455792583,0.05394196,110250.0,110240.0,0.18354235]
[1756455792801,0.23534785,110250.0,110240.0,0.34974235]
[1756455792927,0.23853785,110250.0,110240.0,0.34762235]
[1756455793149,0.05713196,110250.0,110240.0,0.34974235]
[1756455793606,0.05394196,110250.0,110240.0,0.34974235]
[1756455793934,0.05195196,110250.0,110240.0,0.35281235]
[1756455794374,0.03233806,110250.0,110240.0,1.44509844]
[1756455795108,0.03233806,110250.0,110240.0,1.44609844]
[1756455795306,0.02596909,110250.0,110240.0,0.53040499]
[1756455795514,0.02596909,110250.0,110240.0,1.53439476]
[1756455795719,0.02596909,110250.0,110240.0,0.87040499]
[1756455795927,0.02596909,110250.0,110240.0,1.87439476]
[1756455796128,0.00897001,110250.0,110240.0,1.87339476]
[1756455796383,0.00897001,110250.0,110240.0,1.87539476]
[1756455796580,0.00047805,110250.0,110240.0,0.87140499]
[1756455796760,0.00047805,110250.0,110240.0,1.87539476]
[1756455797172,0.00047805,110250.0,110240.0,1.87739476]
[1756455797829,0.00047805,110250.0,110240.0,1.71119476]
[1756455797956,0.00047805,110250.0,110240.0,1.87699476]
[1756455798792,0.00047805,110250.0,110240.0,1.87695476]
[1756455799008,0.00047805,110250.0,110240.0,1.71119476]
[1756455799352,0.00047805,110250.0,110240.0,1.87691476]
[1756455799513,0.00047805,110250.0,110240.0,1.71119476]
[1756455799710,0.00047805,110250.0,110240.0,1.87691476]
[1756455800340,0.00047805,110250.0,110240.0,0.87292499]
[1756455800546,0.00047805,110250.0,110240.0,0.70720499]
[1756455800953,0.00047805,110250.0,110240.0,1.87667476]
[1756455801351,0.00047805,110250.0,110240.0,0.78434867]
[1756455801555,0.00047805,110250.0,110240.0,0.78438867]
[1756455803633,0.00047805,110250.0,110240.0,0.35298235]
[1756455803634,0.00260805,110250.0,110240.0,0.35298235]
[1756455804286,1.19112371,110250.0,110240.0,0.18542235]
[1756455804490,1.00971782,110250.0,110240.0,0.35066235]
[1756455804709,0.00572805,110250.0,110240.0,0.35066235]
[1756455805105,0.18713394,110250.0,110240.0,0.34866235]
[1756455805360,0.00572805,110250.0,110240.0,0.34866235]
[1756455806341,0.00572805,110250.0,110240.0,0.34666235]
[1756455806554,0.01421593,110250.0,110240.0,0.34866235]
[1756455806765,0.02058183,110250.0,110240.0,0.34866235]
[1756455806973,0.03755655,110250.0,110240.0,0.34866235]
[1756455807182,0.21896244,110250.0,110240.0,0.34866235]
[1756455807391,0.21896238,110250.0,110240.0,0.34866235]
[1756455807652,0.21896238,110250.0,110240.0,0.18342235]
[1756455807863,1.31124847,110250.0,110240.0,0.18342235]
[1756455808481,0.3072587,110250.0,110240.0,0.18342235]
[1756455808688,1.28760359,110250.0,110240.0,0.002]
[1756455809157,1.45248359,110250.0,110240.0,0.002]
[1756455809370,1.45248359,110250.0,110240.0,0.001]
[1756455809576,0.18142235,110240.0,110230.0,0.16488]
[1756455809784,0.1814388,110230.0,110220.0,0.19052752]
[1756455809984,0.0116157,110230.0,110220.0,0.35532752]
[1756455810191,0.02858849,110230.0,110220.0,0.35532752]
[1756455810373,0.1930545,110230.0,110220.0,0.35532752]
[1756455810598,0.02858849,110230.0,110220.0,0.35532752]
[1756455811189,0.02858849,110230.0,110220.0,0.35632752]
[1756455811421,0.02858849,110230.0,110220.0,0.19152752]
[1756455811625,0.02858849,110230.0,110220.0,0.35832752]
[1756455811626,0.02546849,110230.0,110220.0,0.35832752]
[1756455812896,0.0084957,110230.0,110220.0,0.35932752]
[1756455813113,0.0063657,110230.0,110220.0,0.35932752]
[1756455813514,0.0063657,110230.0,110220.0,0.36243752]
[1756455814025,0.18454235,110240.0,110230.0,0.1814388]
[1756455814164,0.30676361,110240.0,110230.0,0.1814388]
[1756455814557,0.12534126,110240.0,110230.0,0.1814388]
[1756455814757,0.03179494,110240.0,110230.0,0.1865488]
[1756455814959,0.02331629,110240.0,110230.0,1.19053857]
[1756455815467,0.02331629,110240.0,110230.0,0.1865488]
[1756455815687,0.00635899,110240.0,110230.0,1.19053857]
[1756455815902,0.00635899,110240.0,110230.0,1.34863489]
[1756455816807,0.18138975,110260.0,110250.0,0.18139662]
[1756455817030,0.21211927,110260.0,110250.0,0.34563662]
[1756455817238,0.27635936,110260.0,110250.0,0.34563662]
[1756455817453,0.10344423,110260.0,110250.0,0.34563662]
[1756455817839,0.10344411,110260.0,110250.0,0.34563662]
[1756455818523,0.28483355,110260.0,110250.0,0.16424]
[1756455818758,0.18140589,110250.0,110240.0,0.1642]
[1756455818998,1.21607468,110250.0,110240.0,0.34562235]
[1756455819229,1.28072612,110250.0,110230.0,0.19051074]
[1756455819452,0.00312,110240.0,110230.0,0.19051074]
[1756455819673,0.00525,110240.0,110230.0,0.35459074]
[1756455820160,0.02220013,110240.0,110230.0,0.40910257]
[1756455820386,0.06465144,110250.0,110240.0,0.18142235]
[1756455820612,0.27673207,110250.0,110240.0,0.18142235]
[1756455820861,0.09732618,110250.0,110240.0,0.18142235]
[1756455821076,0.27873207,110250.0,110240.0,0.18142235]
[1756455821300,1.28272184,110250.0,110240.0,0.18142235]
[1756455822186,1.28072184,110250.0,110240.0,0.18142235]
[1756455823229,1.36901816,110250.0,110230.0,0.35459074]
[1756455823446,1.44488184,110250.0,110240.0,0.18142235]
[1756455823933,0.18142235,110240.0,110230.0,0.19051074]
[1756455824121,0.18142235,110240.0,110230.0,0.35451074]
[1756455824122,0.18355235,110240.0,110230.0,0.35451074]
[1756455824581,0.00213,110240.0,110230.0,0.35639074]
[1756455824796,0.00213,110240.0,110230.0,0.35439074]
[1756455824999,0.00213,110240.0,110230.0,0.41139357]
[1756455825887,1.2176816,110250.0,110240.0,0.18142235]
[1756455826078,1.2166916,110250.0,110240.0,0.18142235]
[1756455826341,0.18142235,110240.0,110230.0,0.3453188]
[1756455826568,0.1814388,110230.0,110220.0,0.18145476]
[1756455826792,1.18755857,110230.0,110220.0,0.34517476]
[1756455827219,1.18755857,110230.0,110220.0,0.34521476]
[1756455827424,1.18755857,110230.0,110220.0,0.34517527]
[1756455827879,1.18755857,110230.0,110220.0,0.16372]
[1756455828083,0.18145527,110220.0,110210.0,0.35415391]
[1756455828288,0.18358527,110220.0,110210.0,0.35415391]
[1756455828507,0.18143058,110240.0,110230.0,0.1814388]
[1756455828717,0.18143058,110240.0,110230.0,0.16566]
[1756455828718,0.18975838,110240.0,110230.0,0.16566]
[1756455828986,1.19374815,110240.0,110230.0,0.1834188]
[1756455829235,1.28204447,110240.0,110230.0,0.1834188]
[1756455829455,1.19374815,110240.0,110230.0,0.34757685]
[1756455829684,1.19374815,110240.0,110230.0,0.00047805]
[1756455830132,0.00833603,110240.0,110230.0,0.18389685]
[1756455830363,0.00635603,110240.0,110230.0,0.18683685]
[1756455830829,0.18777838,110240.0,110230.0,0.18683685]
[1756455831064,0.00635603,110240.0,110230.0,0.18683685]
[1756455832291,0.18976838,110240.0,110230.0,0.18389685]
[1756455832525,0.2780647,110240.0,110230.0,0.34765685]
[1756455832701,1.28205447,110240.0,110230.0,0.34765685]
[1756455832899,1.0123358,110240.0,110230.0,0.34765685]
[1756455833057,1.19575815,110240.0,110230.0,0.35059685]
[1756455833259,0.19176838,110240.0,110230.0,0.35159685]
[1756455833463,0.18976838,110240.0,110230.0,0.34865685]
[1756455833677,0.00834603,110240.0,110230.0,0.35159685]
[1756455833888,0.18877838,110240.0,110230.0,0.35059685]
[1756455834094,0.19076838,110240.0,110230.0,0.35059685]
[1756455834305,0.19076838,110240.0,110230.0,0.34765685]
[1756455834729,0.00934603,110240.0,110230.0,0.34765685]
[1756455834934,0.00934603,110240.0,110230.0,0.35059685]
[1756455835835,0.01584025,110240.0,110230.0,0.35059685]
[1756455836097,0.03280867,110240.0,110230.0,0.35059685]
[1756455836309,0.21622102,110240.0,110230.0,0.34765685]
[1756455836688,0.03280867,110240.0,110230.0,0.35059685]
[1756455837538,0.21622102,110240.0,110230.0,0.18683685]
[1756455837753,0.21622102,110240.0,110230.0,0.35031685]
[1756455837968,0.19925109,110240.0,110230.0,0.35031685]
[1756455838242,1.22021229,110240.0,110230.0,0.34539685]
[1756455838698,1.22021229,110240.0,110230.0,0.18191685]
[1756455838921,1.22021229,110240.0,110230.0,0.34539685]
[1756455839349,1.30850861,110240.0,110230.0,0.00047805]
[1756455839585,1.3025059,110240.0,110230.0,0.00047805]
[1756455839800,1.32205064,110240.0,110230.0,0.00047805]
[1756455840273,6.76869284,110240.0,110230.0,0.00047805]
[1756455840489,6.7931016,110240.0,110230.0,0.00047805]
[1756455841151,6.77613617,110240.0,110230.0,0.00047805]
[1756455841409,6.7803821,110240.0,110230.0,0.00047805]
[1756455841614,6.65947997,110240.0,110230.0,0.00047805]
[1756455841821,6.63507121,110240.0,110230.0,0.00047805]
[1756455842046,6.65202671,110240.0,110230.0,0.00047805]
[1756455842451,0.39134459,110240.0,110230.0,0.00539805]
[1756455842751,1.57675671,110240.0,110230.0,0.18683685]
[1756455842970,0.005,110240.0,110230.0,0.18683685]
[1756455843156,0.18642235,110240.0,110230.0,0.18683685]
[1756455843373,0.002,110240.0,110230.0,0.18683685]
[1756455843576,0.68488747,110250.0,110240.0,0.18142235]
[1756455843787,1.69093724,110250.0,110240.0,0.00292]
[1756455843987,0.16554,110250.0,110240.0,0.18340235]
[1756455844252,1.17887701,110260.0,110250.0,0.18140589]
[1756455844394,1.35939645,110260.0,110250.0,0.18338589]
[1756455844606,0.18140589,110250.0,110240.0,0.18142235]
[1756455844821,0.18639589,110250.0,110240.0,0.18142235]
[1756455845020,0.18346589,110250.0,110240.0,0.18340235]
[1756455845841,1.00398977,110250.0,110240.0,0.18340235]
[1756455846041,0.69627668,110260.0,110250.0,0.18140589]
[1756455846267,1.70232645,110260.0,110250.0,0.18140589]
[1756455846504,0.001,110250.0,110240.0,0.18436235]
[1756455846637,0.001,110250.0,110240.0,0.23824546]
[1756455846848,0.001,110250.0,110240.0,0.24022546]
[1756455847266,1.01246701,110260.0,110250.0,0.18140589]
[1756455847462,1.19791645,110260.0,110250.0,0.18338589]
[1756455848117,0.18140589,110250.0,110230.0,0.42422879]
[1756455848254,1.35176566,110250.0,110240.0,0.18142235]
[1756455848474,1.35382566,110250.0,110240.0,0.18142235]
[1756455848670,0.18142235,110240.0,110230.0,0.18191685]
[1756455848937,1.18747212,110240.0,110230.0,0.18191685]
[1756455849137,1.18747212,110240.0,110230.0,0.18389685]
[1756455849276,0.18348235,110240.0,110230.0,0.18389685]
[1756455849485,0.00206,110240.0,110230.0,0.18389685]
[1756455849683,1.40133487,110250.0,110230.0,0.18683685]
[1756455849889,0.00206,110240.0,110230.0,0.18489685]
[1756455850341,1.40033487,110250.0,110230.0,0.18489685]
[1756455850546,0.18348235,110240.0,110230.0,0.18489685]
[1756455851014,1.18747212,110240.0,110230.0,0.00345805]
[1756455851220,1.27869844,110240.0,110230.0,0.00247805]
[1756455851434,1.27869844,110240.0,110230.0,0.00147805]
[1756455851857,1.27869844,110240.0,110230.0,0.00247805]
[1756455852473,1.27869844,110240.0,110230.0,0.00047805]
[1756455852872,1.27969844,110240.0,110230.0,0.00047805]
[1756455853716,0.27570867,110240.0,110230.0,0.00047805]
[1756455853922,1.27969844,110240.0,110230.0,0.00047805]
[1756455854992,1.33104414,110240.0,110230.0,0.00047805]
[1756455855191,1.33204414,110240.0,110230.0,0.00047805]
[1756455855825,0.23582805,110240.0,110230.0,0.18389685]
[1756455856030,0.39926805,110240.0,110230.0,0.18389685]
[1756455856234,0.2178457,110240.0,110230.0,0.18389685]
[1756455856445,0.2157857,110240.0,110230.0,0.18683685]
[1756455856895,0.39720805,110240.0,110230.0,0.18683685]
[1756455857112,0.39926805,110240.0,110230.0,0.18683685]
[1756455857342,0.38230697,110240.0,110230.0,0.18683685]
[1756455857544,0.36746603,110240.0,110230.0,0.18389685]
[1756455857816,0.38230678,110240.0,110230.0,0.18389685]
[1756455858581,0.4736031,110240.0,110230.0,0.00245805]
[1756455858719,1.47759287,110240.0,110230.0,0.00245805]
[1756455858922,1.47759287,110240.0,110230.0,0.00047805]
[1756455865109,0.4736031,110240.0,110230.0,0.00047805]
[1756455865320,1.47759287,110240.0,110230.0,0.00047805]
[1756455866073,1.38929655,110240.0,110230.0,0.00047805]
[1756455866277,1.38293623,110240.0,110230.0,0.00047805]
[1756455866539,1.38929575,110240.0,110230.0,0.00047805]
[1756455866904,1.38081532,110240.0,110230.0,0.00047805]
[1756455867115,1.3744558,110240.0,110230.0,0.00047805]
[1756455868064,1.38929534,110240.0,110230.0,0.00047805]
[1756455868853,1.37445322,110240.0,110230.0,0.00047805]
[1756455869405,1.46274954,110240.0,110230.0,0.00047805]
[1756455869622,1.85553579,110240.0,110230.0,0.00047805]
[1756455870071,6.8779198,110240.0,110230.0,0.00047805]
[1756455870280,6.92682851,110240.0,110230.0,0.00047805]
[1756455870487,6.8942227,110240.0,110230.0,0.00047805]
[1756455870697,6.900581,110240.0,110230.0,0.00047805]
[1756455870901,6.8942227,110240.0,110230.0,0.00047805]
[1756455871150,6.8932227,110240.0,110230.0,0.00047805]
[1756455871287,0.1814882,110200.0,110190.0,0.19401921]
[1756455871490,0.03179072,110200.0,110190.0,0.19609701]
[1756455871708,0.21327892,110200.0,110190.0,0.19609701]
[1756455872519,0.03178134,110200.0,110190.0,0.19609701]
[1756455873006,0.03178134,110200.0,110190.0,0.19909701]
[1756455873202,0.00635627,110200.0,110190.0,0.19909701]
[1756455873487,0.00635627,110200.0,110190.0,0.20209701]
[1756455876094,0.18147376,110210.0,110200.0,0.1814882]
[1756455876318,0.21323016,110210.0,110200.0,0.1867582]
[1756455876760,1.21721993,110210.0,110200.0,0.1867582]
[1756455877385,1.21721993,110210.0,110200.0,0.1887582]
[1756455877627,1.21721993,110210.0,110200.0,0.1907582]
[1756455878015,0.21323016,110210.0,110200.0,0.1907582]
[1756455878214,1.21721993,110210.0,110200.0,0.1907582]
[1756455879646,1.22229993,110210.0,110200.0,0.004]
[1756455880283,1.21929993,110210.0,110200.0,0.1875182]
[1756455880494,1.21929993,110210.0,110200.0,0.00603]
[1756455880934,1.22229993,110210.0,110200.0,0.00603]
[1756455881132,1.22229993,110210.0,110200.0,0.1875182]
[1756455881370,1.22229993,110210.0,110200.0,0.00603]
[1756455881583,1.24797864,110210.0,110200.0,0.004]
[1756455881828,1.24797864,110210.0,110190.0,0.19406701]
[1756455882043,1.22229993,110210.0,110200.0,0.1845182]
[1756455882249,1.22229993,110210.0,110200.0,0.1855182]
[1756455882467,1.22229993,110210.0,110200.0,0.002]
[1756455882727,0.21531016,110210.0,110200.0,0.00403]
[1756455882939,1.20237597,110210.0,110200.0,0.1887582]
[1756455883168,1.21724733,110210.0,110200.0,0.1887582]
[1756455883393,1.21724509,110210.0,110200.0,0.1877582]
[1756455883855,1.21724509,110210.0,110200.0,0.1887582]
[1756455883856,1.03577336,110210.0,110200.0,0.1887582]
[1756455884094,0.03178359,110210.0,110200.0,0.1887582]
[1756455884305,0.21325532,110210.0,110200.0,0.1887582]
[1756455884511,0.21533532,110210.0,110200.0,0.1887582]
[1756455884719,0.21533532,110210.0,110200.0,0.00403]
[1756455884926,1.21932509,110210.0,110200.0,0.00403]
[1756455885347,1.24810817,110210.0,110200.0,0.002]
[1756455885571,1.31945334,110210.0,110200.0,0.002]
[1756455885791,0.28968049,110210.0,110200.0,0.002]
[1756455886002,0.19838417,110210.0,110200.0,0.00403]
[1756455886219,1.23115702,110210.0,110200.0,0.002]
[1756455886439,1.25068966,110210.0,110200.0,0.002]
[1756455887760,0.19630491,110210.0,110200.0,0.1887582]
[1756455887975,1.22607776,110210.0,110200.0,0.1887582]
[1756455888199,0.19630491,110210.0,110200.0,0.1887582]
[1756455888412,1.22607776,110210.0,110200.0,0.00727]
[1756455888619,1.22805776,110210.0,110200.0,0.00403]
[1756455888841,1.22607776,110210.0,110200.0,0.1885282]
[1756455889107,1.22805776,110210.0,110200.0,0.00403]
[1756455889542,0.19630491,110210.0,110200.0,0.1885282]
[1756455889748,1.22805776,110210.0,110200.0,0.00403]
[1756455889963,0.19828491,110210.0,110200.0,0.00403]
[1756455890181,1.22805776,110210.0,110200.0,0.00403]
[1756455891036,1.25082802,110210.0,110200.0,0.002]
[1756455891250,1.33912434,110210.0,110200.0,0.002]
[1756455891745,1.25082802,110210.0,110200.0,0.002]
[1756455892710,0.22105517,110210.0,110200.0,0.002]
[1756455893152,0.19630491,110210.0,110200.0,0.1885782]
[1756455893365,1.22609625,110210.0,110200.0,0.00609]
[1756455893579,1.24762306,110210.0,110200.0,0.00609]
[1756455893799,0.21785021,110210.0,110200.0,0.00609]
[1756455894042,1.24762312,110210.0,110200.0,0.00609]